[Event "IV Estrellas 2022"]
[Site "La Palma"]
[Date "2022.08.12"]
[Round "9.3"]
[White "Pierrot, Facundo"]
[Black "Martinez Duany, Lelys Stanley"]
[Result "1/2-1/2"]
[ECO "C97"]
[WhiteElo "2371"]
[BlackElo "2497"]
[Annotator "TA"]
[PlyCount "64"]
[EventDate "2022.08.06"]
[EventType "swiss"]
[EventCountry "ESP"]
[SourceTitle "playchess.com"]
[Source "ChessBase"]
[SourceQuality "1"]
[TimeControl "5400+30"]

{[%evp 28,64,27,21,25,14,23,17,33,35,34,25,23,18,32,32,14,12,16,11,76,46,53,46,91,80,142,46,61,47,159,148,141,108,191,0,0,-243,-122]} 1. e4 {[%emt 0:00:09]} e5 {[%emt 0:00:50]} 2. Nf3 {[%emt 0:00:11]} Nc6 {[%emt 0:00:24]} 3. Bb5 {[%emt 0:00:20][%cal Bf1b5,Bb5a4,Ba4b3][%mdl 32]} a6 {[%emt 0:00:25]} 4. Ba4 {[%emt 0:00:05]} Nf6 {[%emt 0:00:10]} 5. O-O {[%emt 0:00:30]} Be7 {[%emt 0:00:34]} 6. Re1 {[%emt 0:00:13]} b5 {[%emt 0:00:07]} 7. Bb3 {[%emt 0:00:03]} d6 {[%emt 0:00:06]} 8. c3 {[%emt 0:00:39]} Na5 {[%emt 0:01:47]} 9. Bc2 {[%emt 0:01:24]} c5 {[%emt 0:00:07]} 10. d4 {[%emt 0:04:26]} Qc7 {[%emt 0:00:07]} 11. Nbd2 {[%emt 0:01:37]} O-O {[%emt 0:00:13]} 12. h3 {[%emt 0:00:39]} Bd7 {[%emt 0:03:23]} 13. Nf1 {[%emt 0:01:04]} Nc4 {[%emt 0:00:26]} 14. Ne3 {[%emt 0:01:09]} Nxe3 {[%emt 0:00:12]} 15. Bxe3 {[%emt 0:00:07]} Rfc8 {[%emt 0:01:08] C97: Closed Ruy Lopez: Chigorin Defence: 11 d4 Qc7, sidelines.} 16. Rc1 {[%emt 0:09:01]} h6 {[%emt 0:04:15] [#]} 17. b3 $146 {[%emt 0:00:43]} ({Predecessor:} 17. Nd2 Be6 18. f4 cxd4 19. cxd4 Bxa2 20. Nf3 exf4 21. Bxf4 Bc4 22. d5 Qc5+ 23. Be3 {1-0 (63) Bokelbrink,U-De Groot,A ICCF corr 1996}) 17... c4 {[%emt 0:03:38] The position is equal.} 18. bxc4 {[%emt 0:02:30]} bxc4 {[%emt 0:00:09]} 19. Rb1 {[%emt 0:02:33]} Rab8 {[%emt 0:00:25]} 20. Qd2 {[%emt 0:03:42]} Bc6 {[%emt 0:02:24]} 21. d5 {[%emt 0:00:14]} Bd7 {[%emt 0:00:25]} 22. Rxb8 {[%emt 0:06:07]} Rxb8 {[%emt 0:01:56]} 23. Rb1 {[%emt 0:00:06] Prevents Rb2.} Rb5 {[%emt 0:03:09]} (23... Rxb1+ $11 {remains equal.} 24. Bxb1 Qa5) 24. Qe2 {[%emt 0:02:36]} Rxb1+ {[%emt 0:07:04]} 25. Bxb1 {[%emt 0:00:07]} Bb5 {[%emt 0:00:09] [#]} 26. Qb2 $1 {[%emt 1:03:15]} Qa5 {[%emt 1:09:57]} (26... Bd8 $142) 27. Nd2 {[%emt 0:00:30]} (27. Bc2 $16) 27... Nd7 $14 {[%emt 0:00:30]} 28. Bc2 {[%cal Oa2a4] Threatens to win with a4!} Bg5 {[%emt 0:00:30]} (28... Nb6 $1 $14) 29. Bxg5 $16 hxg5 30. a4 $1 Bxa4 {[%emt 0:01:00]} 31. Qa3 $2 {[%emt 0:02:00] [#]} (31. Nxc4 $18 Qb5 32. Bxa4 Qxa4 33. Nxd6) 31... Nb6 $1 $11 32. Qb2 $2 {[%emt 0:00:30]} (32. Bxa4 $11 {and White stays safe.} Nxa4 33. Nf3 (33. Nxc4 Qxc3 34. Qxa4 Qc1+ 35. Kh2 Qf4+ 36. Kh1 Qc1+ 37. Kh2 Qf4+ 38. Kh1 Qc1+ 39. Kh2 $11)) 32... Bb5 {Weighted Error Value: White=0.48/Black=0.26 (precise)} (32... Bxc2 $19 33. Qxc2 Qa1+ 34. Qb1 Qxc3) 1/2-1/2

[Event "IV Estrellas 2022"]
[Site "La Palma"]
[Date "2022.08.12"]
[Round "9.4"]
[White "Pulvett Marin, Daniel Eduardo"]
[Black "Martinez Reyes, Pedro Ramon"]
[Result "1-0"]
[ECO "B86"]
[WhiteElo "2523"]
[BlackElo "2408"]
[Annotator "TA"]
[PlyCount "83"]
[EventDate "2022.08.06"]
[EventType "swiss"]
[EventCountry "ESP"]
[SourceTitle "playchess.com"]
[Source "ChessBase"]
[SourceQuality "1"]
[TimeControl "5400+30"]

{[%evp 18,83,30,25,74,66,72,81,109,87,97,76,79,42,48,54,125,25,56,56,75,53,212,193,226,221,204,179,338,329,343,338,341,336,305,280,335,342,334,339,341,341,338,337,344,333,581,565,739,350,590,444,638,427,479,492,518,510,496,472,29986,29987,29987,29971,29969,5420,5381,1287]} 1. e4 {[%emt 1:31:00]} c5 {[%emt 1:31:00]} 2. Nf3 {[%emt 0:00:30]} d6 {[%emt 0:00:30]} 3. d4 {[%emt 0:00:30]} Nf6 {[%emt 0:00:30]} 4. Nc3 {[%emt 0:00:30]} cxd4 {[%emt 0:00:30]} 5. Nxd4 {[%emt 0:00:30]} a6 {[%emt 0:00:30]} 6. Bc4 {[%emt 0:00:30]} e6 {[%emt 0:00:30]} 7. Bb3 {[%emt 0:00:30]} Be7 {[%emt 0:00:30]} 8. g4 {[%emt 0:00:30]} h6 {[%emt 0:00:30]} 9. Be3 {[%emt 0:00:30]} Nc6 {[%emt 0:00:30]} 10. Rg1 {[%emt 0:00:30]} g5 {[%emt 0:00:30] B86: Sicilian Scheveningen/Najdorf: 6 Bc4, without early ...b5.} (10... Bd7 $11) 11. Qe2 $16 {[%emt 0:00:30]} Bd7 {[%emt 0:00:30]} 12. O-O-O {[%emt 0:00:30] [#] White is more active.} Qa5 $146 {[%emt 0:00:30] White is better.} ({Predecessor:} 12... Qc7 13. h4 gxh4 14. f4 O-O-O 15. f5 Na5 16. fxe6 Nxb3+ 17. cxb3 fxe6 18. Kb1 Kb8 {1-0 (43) Nukin,A (2343)-Shlegin,S (2316) Saratov 2009}) 13. Nxc6 {[%emt 0:00:30]} Bxc6 {[%emt 0:00:30]} 14. Bd4 {[%emt 0:00:30]} Rg8 {[%emt 0:00:30]} 15. Rg3 {[%emt 0:00:30][%cal Oc3d5]} Kf8 {[%emt 0:00:30]} ({Resist} 15... e5 16. Be3 $16) 16. Kb1 {[%emt 0:00:30][%cal Oh2h4]} Rg6 {[%emt 0:00:30]} (16... Nd7 $14) 17. Qe3 {[%emt 0:00:30]} (17. h4 $16) 17... Nd7 {[%emt 0:00:30]} 18. Ne2 {[%emt 0:00:30]} Bf6 {[%emt 0:00:30]} 19. f4 {[%emt 0:00:30] Strongly threatening Rf3.} (19. f3 $5 {[%cal Rf3f4]}) 19... e5 $2 {[%emt 0:00:30] Black cannot hold the game after this.} (19... Bxd4 $14 20. Qxd4 e5 21. fxe5 (21. Qc4 d5 $11) 21... Qxe5) 20. fxe5 $18 {[%emt 0:00:30]} Bxe5 {[%emt 0:00:30]} 21. Rf3 {[%emt 0:00:30]} Rf6 {[%emt 0:00:30]} 22. Rdf1 {[%emt 0:00:30][%csl LRf6,LRf7]} Rxf3 {[%emt 0:00:30]} (22... Ke7 23. Rxf6 Nxf6) 23. Qxf3 {[%emt 0:00:30][%csl Gb3,Gf1][%cal Rf3f7]} f6 {[%emt 0:00:30] [#]} 24. Qf5 $1 {[%emt 0:00:30]} Ke7 {[%emt 0:00:30]} 25. Qe6+ {[%emt 0:00:30]} Kd8 {[%emt 0:00:30]} 26. Qg8+ {[%emt 0:00:30]} Kc7 {[%emt 0:00:30]} 27. Qxa8 {[%emt 0:00:30]} Qd2 {[%emt 0:00:30] [#] Against Rd1} 28. Bxe5 $1 {[%emt 0:00:30]} Qxe2 {[%emt 0:00:30][%cal Re2f1] [#]} 29. Bxd6+ $1 {[%emt 0:00:30]} Kxd6 {[%emt 0:00:30][%cal Re2f1]} 30. Rc1 {[%emt 0:00:30]} Kc7 {[%emt 0:00:30]} 31. Bd5 {[%emt 0:00:30]} ({Don't take} 31. Be6 Qxh2 32. Qg8 Nc5) 31... Qxg4 $2 {[%emt 0:00:30]} (31... Bxd5 32. exd5 Qxh2) 32. Bxc6 {[%emt 0:00:30]} Kxc6 {[%emt 0:00:30][%mdl 4096] Endgame KQR-KQN} 33. Qe8 {[%emt 0:00:30]} (33. Qc8+ $142 Kb6 34. h3 Qxh3 35. Rd1) 33... h5 $2 {[%emt 0:00:30]} (33... Kc7 {might work better.} 34. Qf7 Qe2) 34. a4 {[%emt 0:00:30]} h4 {[%emt 0:00:30]} (34... Kc7 $142 35. Re1 Qf3) 35. Re1 {[%emt 0:00:30] Qd8 is the strong threat.} Kc7 {[%emt 0:00:30]} 36. Qe7 {[%emt 0:00:30]} h3 {[%emt 0:00:30]} 37. Ka2 {[%emt 0:00:30] aiming for Re3.} Qf3 {Inhibits Re3.} 38. Rg1 {[%emt 0:00:30] Threatens to win with Rg3.} Qg2 {[%emt 0:01:00]} (38... Qe2 $18 39. Kb1 b6) 39. Rd1 {[%emt 0:00:30]} Qg4 {[%emt 0:00:30]} 40. Rd3 {[%emt 0:00:30]} a5 {[%emt 0:00:30]} 41. Rc3+ {[%emt 0:00:30]} Kb6 {[%emt 0:00:30]} 42. Rg3 {[%emt 0:00:30] Weighted Error Value: White=0.34/Black=0.67} (42. Qd8+ $142 Ka7 43. Qxa5+ Kb8 44. Qc7+ Ka7 45. Rb3 Qxe4 46. Qxd7) 1-0

[Event "IV Estrellas 2022"]
[Site "La Palma"]
[Date "2022.08.12"]
[Round "9.5"]
[White "Kurajica, Bojan"]
[Black "Del Rey, Diego"]
[Result "1-0"]
[ECO "D11"]
[WhiteElo "2525"]
[BlackElo "2358"]
[Annotator "TA"]
[PlyCount "115"]
[EventDate "2022.08.06"]
[EventType "swiss"]
[EventCountry "ESP"]
[SourceTitle "playchess.com"]
[Source "ChessBase"]
[SourceQuality "1"]
[TimeControl "5400+30"]

{[%evp 9,115,19,31,13,13,13,18,30,8,23,30,20,19,0,11,8,9,0,8,13,10,10,21,0,12,10,21,14,14,9,22,36,29,17,17,16,12,14,14,17,24,33,22,19,20,12,14,8,3,5,5,10,8,0,8,7,6,2,14,5,8,8,8,8,8,8,23,8,47,11,8,13,14,8,41,56,249,247,247,204,197,182,263,250,287,269,242,248,225,191,291,252,276,280,657,657,602,602,657,499,657,657,29976,29977,29977,29970,29979,29974]} 1. Nf3 {[%emt 0:00:47]} d5 {[%emt 0:00:08][%cal Bd7d5,Bd5c4][%mdl 32]} 2. d4 {[%emt 0:00:14]} c6 {[%emt 0:00:10]} 3. c4 {[%emt 0:00:19]} dxc4 {[%emt 0:00:18]} 4. a4 {[%emt 0:01:05]} Nf6 {[%emt 0:01:27]} 5. e3 {[%emt 0:01:17]} Be6 {[%emt 0:00:32][%cal Oc6c5]} 6. Qc2 {[%emt 0:04:52] D11: Slav Defence: 3 Nf3 sidelines and 3...Nf6 4 e3 Bg4.} Na6 {[%emt 0:04:44]} 7. Bd2 {[%emt 0:03:21] Inhibits Nb4.} Bd5 {[%emt 0:08:31]} 8. Bxc4 {[%emt 0:02:22] The position is equal.} Bxc4 {[%emt 0:02:19]} 9. Qxc4 {[%emt 0:00:30] [#]} Qd5 $146 {[%emt 0:00:13]} ({Predecessor:} 9... e6 10. O-O Be7 11. b4 Nc7 12. Nc3 O-O 13. b5 cxb5 14. axb5 Ncd5 15. Rfc1 Nxc3 16. Bxc3 {1-0 (46) Zontakh,A (2531)-Riazantsev,A (2572) bereg.ru Int 2003}) 10. Qxd5 {[%emt 0:06:06]} Nxd5 {[%emt 0:03:59]} 11. e4 {[%emt 0:02:46]} Nf6 {[%emt 0:03:18]} 12. Nc3 {[%emt 0:00:07]} e6 {[%emt 0:00:09]} 13. O-O {[%emt 0:17:41]} Be7 {[%emt 0:00:15]} 14. Be3 {[%emt 0:03:56]} O-O {[%emt 0:07:51]} 15. Rfd1 {[%emt 0:03:40]} Rfd8 {[%emt 0:01:10]} 16. Rac1 {[%emt 0:06:49]} h6 {[%emt 0:03:06]} 17. Ne5 {[%emt 0:01:40]} c5 {[%emt 0:03:23]} 18. f3 {[%emt 0:04:08]} cxd4 {[%emt 0:02:43]} 19. Rxd4 {[%emt 0:00:15]} Bc5 {[%emt 0:01:17]} 20. Rxd8+ {[%emt 0:00:06]} Rxd8 {[%emt 0:00:04]} 21. Bxc5 {[%emt 0:00:43]} Nxc5 {[%emt 0:00:05]} 22. b4 {[%emt 0:04:20]} Nb3 {[%emt 0:12:36]} 23. Rb1 {[%emt 0:01:50]} Nd4 {[%emt 0:00:06]} 24. Rd1 {[%emt 0:01:09]} Ne2+ {[%emt 0:02:03]} 25. Kf2 {[%emt 0:00:11]} Rxd1 {[%emt 0:00:03]} 26. Nxd1 $14 {[%emt 0:00:06][%mdl 4096] Endgame KNN-KNN} Nd4 {[%emt 0:00:08]} 27. Nb2 {[%emt 0:05:49]} Ne8 {[%emt 0:03:14]} 28. Nbd3 {[%emt 0:03:04]} f6 {[%emt 0:01:38]} 29. Nc4 {[%emt 0:00:45]} b5 {[%emt 0:02:01]} 30. axb5 {[%emt 0:00:20]} Nxb5 {[%emt 0:00:04]} 31. f4 {[%emt 0:01:54]} g5 {[%emt 0:03:06]} 32. g3 {[%emt 0:01:34]} Kf7 {[%emt 0:00:40]} 33. Ke3 {[%emt 0:01:15]} Ke7 {[%emt 0:04:59]} 34. e5 {[%emt 0:01:18]} Nec7 {[%emt 0:03:46]} 35. exf6+ {[%emt 0:00:19]} Kxf6 {[%emt 0:00:04]} 36. fxg5+ {[%emt 0:01:05]} hxg5 {[%emt 0:00:06]} 37. Kf3 {[%emt 0:02:02]} Kf5 {[%emt 0:04:02]} 38. Ne3+ {[%emt 0:00:51]} Kg6 {[%emt 0:00:10]} 39. Ke4 {[%emt 0:02:54]} Kf6 {[%emt 0:01:09]} 40. Ng4+ {[%emt 0:00:08]} Ke7 {[%emt 0:00:14]} 41. Ke5 {[%emt 0:01:21]} Nd6 {[%emt 0:00:59]} 42. Kd4 {[%emt 0:01:38]} a5 $2 {[%emt 0:02:15] [#] A mistake that costs the game.} ({Black should play} 42... Nf7 $14) 43. bxa5 $18 {[%emt 0:00:40] Threatens to win with Kc5.} Nb7 {[%emt 0:00:02]} 44. Nde5 {[%emt 0:00:37]} Nxa5 {[%emt 0:00:56]} 45. Nf3 {[%emt 0:00:05]} Nc6+ {[%emt 0:01:10]} (45... Nb5+ {was necessary.} 46. Kd3 Nd6) 46. Ke4 {[%emt 0:00:15]} Ne8 {[%emt 0:00:57]} 47. Nxg5 {[%emt 0:00:15]} Nd6+ {[%emt 0:00:02]} 48. Kf4 {[%emt 0:00:55]} Nb4 {[%emt 0:00:46]} 49. Ne4 {[%emt 0:01:24] [#] Hoping for Nxd6.} Nf7 {[%emt 0:00:57]} (49... Nd5+ {was worth a try.} 50. Ke5 Nf7+ 51. Kd4 Nb4) 50. h4 {[%emt 0:00:44]} Nd5+ {[%emt 0:00:25]} 51. Kf3 {[%emt 0:00:07]} e5 $2 {[%emt 0:03:35]} (51... Kf8 52. Nc5 Ke7) 52. Ne3 {[%emt 0:14:51]} Nc7 53. g4 {[%emt 0:00:00][%cal Bg3g4,Bg4g5][%mdl 32]} Kf8 {[%emt 0:02:34]} 54. Nf5 {[%emt 0:00:00]} Ne6 {[%emt 0:00:14]} 55. g5 {[%emt 0:00:00]} Nd4+ {[%emt 0:01:02]} 56. Kg4 {[%emt 0:02:00] White mates.} Nd8 57. h5 {[%emt 0:00:00][%cal Bh4h5,Bh5h6][%mdl 32]} N8e6 {[%emt 0:00:50]} 58. h6 {[%emt 0:00:00] Weighted Error Value: White=0.08 (flawless) /Black=0.44} 1-0

[Event "IV Estrellas 2022"]
[Site "La Palma"]
[Date "2022.08.12"]
[Round "9.6"]
[White "Herrera Reyes, Jose Antonio"]
[Black "Hernandez Leon, Sergio"]
[Result "0-1"]
[ECO "A14"]
[WhiteElo "2345"]
[BlackElo "2094"]
[Annotator "TA"]
[PlyCount "58"]
[EventDate "2022.08.06"]
[EventType "swiss"]
[EventCountry "ESP"]
[SourceTitle "playchess.com"]
[Source "ChessBase"]
[SourceQuality "1"]
[TimeControl "5400+30"]

{[%evp 14,58,5,-16,-10,-39,-25,-35,-36,-57,-44,-45,-41,-47,-53,-83,-50,-56,-60,-104,-78,-101,-98,-104,-100,-112,-96,-122,-102,-283,-302,-533,-555,-742,-743,-1247,-1222,-2434,-2394,-2152,-2056,-1722,-1375,-1172,-1132,-2239,-1004]} 1. Nf3 {[%emt 0:00:03]} d5 {[%emt 0:00:26]} 2. g3 {[%emt 0:00:06]} Nf6 {[%emt 0:00:13]} 3. Bg2 {[%emt 0:00:06]} e6 {[%emt 0:01:07]} 4. O-O {[%emt 0:00:09]} Be7 {[%emt 0:00:10]} 5. c4 {[%emt 0:00:07]} O-O {[%emt 0:00:15]} 6. b3 {[%emt 0:02:37]} b6 {[%emt 0:01:27]} 7. Bb2 {[%emt 0:00:45]} Bb7 {[%emt 0:01:47]} 8. Qc2 {[%emt 0:02:10] 8.cxd5 is a critical line.} c5 {[%emt 0:00:45] A14: English Opening: 1...e6 with b3 by White.} 9. Ng5 {[%emt 0:02:25] [#] Hoping for Bxf6.} h6 {[%emt 0:05:25]} 10. Bxf6 {[%emt 0:03:54][%csl Gg5][%cal Rc2h7]} hxg5 {[%emt 0:00:15] Black is slightly better.} 11. Bxe7 {[%emt 0:00:05]} Qxe7 {[%emt 0:00:14]} 12. cxd5 {[%emt 0:00:07]} Bxd5 {[%emt 0:06:51]} 13. Bxd5 {[%emt 0:01:17]} exd5 {[%emt 0:00:02] [#]} 14. Qf5 $146 {[%emt 0:01:22]} ({Predecessor:} 14. Nc3 Nc6 15. Rae1 Rad8 16. f4 d4 17. Ne4 Nb4 18. Qb1 gxf4 19. Rxf4 d3 20. exd3 {1-0 (28) Dushin,N (2229)-Voronenkov,S (1980) St Petersburg 2007}) 14... Nc6 {[%emt 0:04:53][%cal Bb8c6,Bc6d4,Bd4e6,Be6g5,Bg5h3][%mdl 32]} 15. Nc3 $1 {[%emt 0:05:52]} Nd4 {[%emt 0:07:13][%csl LRe2,LRf5]} 16. Qg4 {[%emt 0:04:40]} Rad8 {[%emt 0:00:56] Black is more active.} 17. e3 {[%emt 0:00:44]} f5 $36 {[%emt 0:00:45][%mdl 2048] Black has strong initiative.} 18. Qh5 {[%emt 0:06:23]} Ne6 {[%emt 0:01:12]} 19. Rae1 {[%emt 0:00:50]} Qf6 {[%emt 0:03:47]} 20. h3 {[%emt 0:06:45] Prevents g4.} g6 {[%emt 0:17:02]} 21. Qf3 {[%emt 0:02:31] White does not recover from this.} (21. Qe2 $17 {was necessary.}) 21... g4 $19 {[%emt 0:03:32]} 22. Qh1 {[%emt 0:08:34] [#]} ({Reject} 22. hxg4 Ng5 23. Qe2 fxg4 $19) (22. Qd1 {is a better defense.} Ng5 23. d4 (23. hxg4 $2 fxg4 24. Kg2 Nf3 $19)) 22... Ng5 $1 {[%emt 0:03:38] Black is clearly winning.} 23. f4 {[%emt 0:00:32]} Nxh3+ {[%emt 0:00:56]} 24. Kh2 {[%emt 0:02:23]} Kg7 {[%emt 0:01:01] aiming for ...Rh8.} 25. Nxd5 {[%emt 0:00:46]} Qe6 {[%emt 0:00:17] ( -> ...Rh8)} 26. Nc3 {[%emt 0:05:12]} Rxd2+ {[%emt 0:02:49]} 27. Re2 {[%emt 0:00:03]} Rxe2+ {[%emt 0:01:06]} 28. Nxe2 {[%emt 0:00:02]} Qxe3 {[%emt 0:00:12] Strongly threatening ...Rh8.} 29. Qg2 {[%emt 0:00:15]} Re8 {[%emt 0:02:15] Weighted Error Value: White=0.98/Black=0.26 (precise)} (29... Rh8 $142 30. Qb7+ Kh6) 0-1

[Event "IV Estrellas 2022"]
[Site "La Palma"]
[Date "2022.08.12"]
[Round "9.7"]
[White "Roeder, Matthias"]
[Black "Antic, Dejan"]
[Result "1/2-1/2"]
[ECO "A07"]
[WhiteElo "2357"]
[BlackElo "2452"]
[Annotator "TA"]
[PlyCount "43"]
[EventDate "2022.08.06"]
[EventType "swiss"]
[EventCountry "ESP"]
[SourceTitle "playchess.com"]
[Source "ChessBase"]
[SourceQuality "1"]
[TimeControl "5400+30"]

{[%evp 9,43,16,22,27,24,6,6,0,16,0,0,0,0,-13,0,-65,-88,-81,-86,-86,-77,-75,0,0,0,0,11,9,7,-12,-7,-50,-46,-104,77,41]} 1. Nf3 {[%emt 0:00:03]} e6 {[%emt 0:00:51]} 2. g3 {[%emt 0:00:09]} d5 {[%emt 0:00:00]} 3. Bg2 {[%emt 0:00:05]} a6 {[%emt 0:02:30]} 4. O-O {[%emt 0:01:04]} Nf6 {[%emt 0:00:53]} 5. b3 {[%emt 0:03:17]} c5 {[%emt 0:00:03]} 6. Bb2 {[%emt 0:00:53] [#] A07: Réti Opening: New York and Capablanca Systems.} Be7 $146 {[%emt 0:00:53]} ({Predecessor:} 6... Nc6 7. d4 cxd4 8. Nxd4 Bc5 9. Nxc6 bxc6 10. Nd2 O-O 11. e4 Re8 12. c4 Bb7 13. cxd5 exd5 {1-0 (37) Doluhanova,E (2229)-Musovic,A (2207) Chess.com INT 2020}) 7. e3 {[%emt 0:05:24]} b5 {[%emt 0:13:06]} 8. c4 {[%emt 0:00:26] The position is equal.} Bb7 {[%emt 0:05:57]} 9. d4 {[%emt 0:04:17]} dxc4 {[%emt 0:02:07]} 10. bxc4 {[%emt 1:19:52]} Nbd7 {[%emt 0:02:49]} 11. Nbd2 {[%emt 0:00:00]} O-O {[%emt 0:01:20]} 12. Ne5 {[%emt 0:00:00]} (12. Qe2 $11) 12... Bxg2 $15 {[%emt 0:02:09]} 13. Kxg2 {[%emt 0:00:00]} Nxe5 {[%emt 0:00:14]} 14. dxe5 {[%emt 0:00:00] [#]} Nd7 {[%emt 0:00:25][%cal Bf6d7,Bd7b8,Bb8c6][%mdl 32]} 15. a4 {[%emt 0:00:00]} bxa4 {[%emt 0:02:56]} (15... b4 $17) 16. Bc3 $11 {[%emt 0:00:00][%cal Bb2c3,Bc3a5,Ba5b4][%mdl 32]} Qc7 {[%emt 0:02:15]} 17. Nf3 {[%emt 0:00:00]} Nb8 {[%emt 0:01:26]} 18. Qxa4 {[%emt 0:00:00]} Nc6 {[%emt 0:00:16]} 19. Ba5 {[%emt 0:00:00]} Qb7 {[%emt 0:04:50] Hoping for ...Nxe5.} 20. Rfb1 {[%emt 0:00:00]} Nb4 {[%emt 0:00:16]} 21. Rd1 {[%emt 0:00:00]} (21. Qd1 $15) 21... Qe4 $2 {[%emt 0:02:32] [#]} (21... Ra7 $17 {stays on course.} 22. Ra3 g5) 22. Bxb4 {[%emt 0:00:00] Weighted Error Value: White=0.20 (precise) /Black=0.25 (precise)} 1/2-1/2

[Event "IV Estrellas 2022"]
[Site "La Palma"]
[Date "2022.08.12"]
[Round "9.8"]
[White "Sosa Suarez, Carla Cristina"]
[Black "Garcia Blanco, Omar"]
[Result "0-1"]
[ECO "B41"]
[WhiteElo "2125"]
[BlackElo "2352"]
[Annotator "TA"]
[PlyCount "82"]
[EventDate "2022.08.06"]
[EventType "swiss"]
[EventCountry "ESP"]
[SourceTitle "playchess.com"]
[Source "ChessBase"]
[SourceQuality "1"]
[TimeControl "5400+30"]

{[%evp 21,82,0,0,7,0,-7,-3,-54,-56,-54,-49,-66,-50,-42,-40,-59,-70,-107,-101,-116,-103,-128,-118,-135,-133,-218,-210,-289,-291,-272,-202,-273,-217,-343,-337,-316,-346,-466,-461,-456,-455,-692,-560,-530,-506,-532,-531,-504,-494,-571,-567,-609,-605,-1606,-1582,-1678,-1587,-2546,-2524,-2321,-2368,-2068,-1961]} 1. e4 {[%emt 0:00:03]} c5 {[%emt 0:01:53]} 2. Nf3 {[%emt 0:00:04]} a6 {[%emt 0:00:27]} 3. c4 {[%emt 0:00:26]} e6 {[%emt 0:00:18]} 4. d4 {[%emt 0:00:51]} cxd4 {[%emt 0:00:09]} 5. Nxd4 {[%emt 0:00:06]} Nf6 {[%emt 0:00:26]} 6. Nc3 {[%emt 0:00:43]} Bb4 {[%emt 0:03:36]} 7. Bd3 {[%emt 0:06:08]} Nc6 {[%emt 0:00:08]} 8. Nxc6 {[%emt 0:02:35]} dxc6 {[%emt 0:00:06]} 9. e5 {[%emt 0:19:52][%cal Be4e5,Be5f6,Bf6g7][%mdl 32]} Qd4 {[%emt 0:01:39]} 10. exf6 {[%emt 0:10:04]} Bxc3+ {[%emt 0:00:07]} 11. bxc3 {[%emt 0:01:24]} Qxc3+ {[%emt 0:00:06]} 12. Bd2 {[%emt 0:01:25] B41: Sicilian: Kan Variation: 5 c4.} Qxd3 {[%emt 0:00:07]} 13. fxg7 {[%emt 0:02:09]} Rg8 {[%emt 0:00:11][%cal Bh8g8,Bg8g7,Bg7g5,Bg5c5][%mdl 32]} 14. Ba5 {[%emt 0:16:26]} ({White should play} 14. Bh6 $11 Qe4+ 15. Qe2 Qxe2+ 16. Kxe2) 14... Qe4+ $1 $15 {[%emt 0:02:58]} 15. Qe2 $1 {[%emt 0:00:47]} Qxe2+ {[%emt 0:04:35]} (15... Qxg2 16. Qd3 $1 Qg5 17. Bc3 $11) 16. Kxe2 {[%emt 0:00:02] [#]} Rxg7 $146 {[%emt 0:00:11]} ({Predecessor:} 16... e5 17. c5 Rxg7 18. g3 Bf5 19. Rhd1 Rg4 20. Rd2 Rc4 21. Bb6 Ra4 22. Rb2 Rc8 {1-0 (62) Kononenko,D (2443)-Alexandrova,O (2445) Alushta 2003}) 17. Rhd1 {[%emt 0:04:33]} Bd7 {[%emt 0:01:32]} 18. c5 {[%emt 0:01:14]} Rg5 {[%emt 0:01:44]} 19. Rab1 {[%emt 0:04:00] [#] White is now going downhill.} b5 $1 {[%emt 0:02:46]} ({Of course not} 19... Rxc5 20. Rxb7 Re5+ 21. Kf3 $15) 20. Rb4 {[%emt 0:04:31]} Rxc5 {[%emt 0:17:49]} ({Weaker is} 20... Rxg2 21. Rbd4 Ra7 22. Rh4 $15) 21. Rg4 {[%emt 0:00:11] Black must now prevent Rg8+.} Re5+ {[%emt 0:00:08]} (21... Rc2+ $2 22. Kd3 Rxa2 23. Rg8+ Ke7 24. Bb4+ Kf6 25. Rxa8 $18) 22. Kf3 {[%emt 0:03:17] Threatens to win with Rg8+.} Ke7 {[%emt 0:01:35]} 23. Bc7 {[%emt 0:04:39]} (23. Rgd4 $17 Rd5 24. Bb4+ Kd8 25. Ke2) 23... Rd5 $19 {[%emt 0:04:11]} 24. Rxd5 {[%emt 0:00:09]} exd5 {[%emt 0:00:11][%mdl 4096] Endgame KRB-KRB} (24... cxd5 $2 {perishes.} 25. Rh4 $19) 25. Rh4 {[%emt 0:00:33]} Bf5 {[%emt 0:00:25]} 26. Kf4 {[%emt 0:00:40]} Bb1 {[%emt 0:00:48]} 27. a3 {[%emt 0:00:04]} (27. Bb6 $142) 27... Rc8 {[%emt 0:01:19]} 28. Bb6 {[%emt 0:00:32]} c5 {[%emt 0:00:13]} 29. Ke5 {[%emt 0:00:28]} d4 {[%emt 0:00:40] Strongly threatening ...d3. Black is clearly winning.} 30. Kd5 {[%emt 0:00:38]} Ba2+ {[%emt 0:00:09]} 31. Ke5 {[%emt 0:00:46]} (31. Ke4 $142 Ke6 32. Rh6+ f6 33. Kf3) 31... Rc6 {[%emt 0:00:56]} 32. Ba5 {[%emt 0:00:29]} Re6+ {[%emt 0:00:11]} 33. Kf4 {[%emt 0:00:53]} Bb1 {[%emt 0:00:47]} 34. Rh5 {[%emt 0:01:10]} Kd6 {[%emt 0:01:33]} 35. Bb6 {[%emt 0:00:43]} c4 {[%emt 0:00:07] ...c3 is the strong threat.} 36. Bc5+ {[%emt 0:00:50]} Kc6 {[%emt 0:00:28]} 37. f3 {[%emt 0:00:38]} Bg6 {[%emt 0:00:22] And now ...d3 would win.} 38. Rg5 {[%emt 0:01:04]} h6 {[%emt 0:00:17]} 39. Rxg6 {[%emt 0:00:32]} Rxg6 {[%emt 0:00:07]} 40. Bxd4 {[%emt 0:00:03]} Rxg2 {[%emt 0:00:11]} 41. Bc3 {[%emt 0:01:46]} Rxh2 {[%emt 0:00:19] Weighted Error Value: White=0.40/Black=0.09 (flawless)} 0-1